[Event "9th RTU Open 2019"]
[Site "Riga"]
[Date "2019.08.09"]
[Round "8.4"]
[White "Pultinevicius, Paulius"]
[Black "Theodorou, Nikolas"]
[Result "1-0"]
[ECO "E71"]
[WhiteElo "2485"]
[BlackElo "2548"]
[Annotator "ChessBase"]
[PlyCount "161"]
[EventDate "2019.08.05"]
[EventType "swiss"]
[EventCountry "LAT"]
[SourceTitle "playchess.com"]
[Source "ChessBase"]
[SourceQuality "1"]
[TimeControl "5400+30"]

1. d4 {[%emt 0:00:00]} Nf6 {[%emt 0:03:32]} 2. c4 {[%emt 0:00:00]} g6 {[%emt 0:00:26]} 3. Nc3 {[%emt 0:00:10]} Bg7 {[%emt 0:00:04]} 4. e4 {[%emt 0:00:07]} d6 {[%emt 0:00:04]} 5. h3 {[%emt 0:00:08]} O-O {[%emt 0:00:05]} 6. Be3 {[%emt 0:00:04]} Na6 {[%emt 0:00:46]} 7. Bd3 {[%emt 0:01:28]} c6 {[%emt 0:01:39]} 8. Nf3 {[%emt 0:01:09]} e5 {[%emt 0:00:58]} 9. d5 {[%emt 0:00:45]} cxd5 {[%emt 0:00:05]} 10. cxd5 {[%emt 0:00:04]} Ne8 {[%emt 0:00:04]} 11. Rb1 {[%emt 0:07:53]} f5 {[%emt 0:01:45]} 12. b4 {[%emt 0:01:33]} f4 {[%emt 0:02:24]} 13. Bc1 {[%emt 0:05:05]} g5 {[%emt 0:11:31]} 14. Nd2 {[%emt 0:04:22]} Nac7 {[%emt 0:04:44]} 15. a4 {[%emt 0:03:09]} Nf6 {[%emt 0:01:00]} 16. Nc4 {[%emt 0:09:03]} Rf7 {[%emt 0:03:04]} 17. b5 {[%emt 0:03:26]} Nce8 {[%emt 0:02:11]} 18. Be2 {[%emt 0:02:53]} Bf8 {[%emt 0:03:46]} 19. g4 {[%emt 0:18:12]} fxg3 {[%emt 0:06:30]} 20. fxg3 {[%emt 0:00:05]} h6 {[%emt 0:01:07]} 21. b6 {[%emt 0:05:50]} a6 {[%emt 0:02:24]} 22. Be3 {[%emt 0:01:32]} Ng7 {[%emt 0:06:53]} 23. Na5 {[%emt 0:08:46]} Bxh3 {[%emt 0:05:42]} 24. g4 {[%emt 0:06:13]} Qc8 {[%emt 0:16:26]} 25. Rc1 {[%emt 0:00:22]} Bxg4 {[%emt 0:03:39]} 26. Rxh6 {[%emt 0:01:03]} Ngh5 {[%emt 0:06:36]} 27. Rxh5 {[%emt 0:03:52]} Bxh5 {[%emt 0:01:35]} 28. Bxh5 {[%emt 0:00:05]} Rh7 {[%emt 0:01:09]} 29. Bf3 {[%emt 0:00:05]} Rh2 {[%emt 0:07:51]} 30. Bg1 {[%emt 0:02:15]} Rb2 {[%emt 0:00:39]} 31. Rc2 {[%emt 0:03:18]} g4 {[%emt 0:00:01]} 32. Bg2 {[%emt 0:03:17]} Rxc2 {[%emt 0:00:07]} 33. Qxc2 {[%emt 0:00:03]} Nh5 {[%emt 0:00:03]} 34. Bf1 {[%emt 0:01:51]} Nf4 {[%emt 0:00:13]} 35. Bf2 {[%emt 0:01:43]} Qd7 {[%emt 0:00:50]} 36. Nd1 {[%emt 0:02:42]} Rc8 {[%emt 0:00:37]} 37. Nc4 {[%emt 0:00:27]} Qh7 {[%emt 0:02:28]} 38. Nde3 {[%emt 0:00:15]} Qh1 {[%emt 0:03:02]} 39. Qd1 {[%emt 0:01:00]} Rxc4 {[%emt 0:00:52]} 40. Nxc4 {[%emt 0:02:05]} Qxe4+ {[%emt 0:00:36]} 41. Be3 {[%emt 0:01:10]} Bg7 {[%emt 0:02:01]} 42. Kf2 {[%emt 0:01:55]} Nxd5 {[%emt 0:00:34]} 43. Bg2 {[%emt 0:00:39]} Qf5+ {[%emt 0:00:52]} 44. Ke1 {[%emt 0:00:28]} e4 {[%emt 0:00:16]} 45. Qb3 {[%emt 0:01:12]} Bc3+ {[%emt 0:00:46]} 46. Nd2 {[%emt 0:00:33]} Kf8 {[%emt 0:00:16]} 47. Bh6+ {[%emt 0:00:36]} Ke7 {[%emt 0:00:15]} 48. Qc4 {[%emt 0:00:35]} e3 {[%emt 0:00:21]} 49. Qxd5 {[%emt 0:00:28]} Qf2+ {[%emt 0:01:05]} 50. Kd1 {[%emt 0:00:02]} e2+ {[%emt 0:00:05]} 51. Kc2 {[%emt 0:00:03]} e1=Q {[%emt 0:00:20]} 52. Qxb7+ {[%emt 0:00:13]} Kf6 {[%emt 0:01:07]} 53. Bg7+ {[%emt 0:00:32]} Kg5 {[%emt 0:00:16]} 54. Bxc3 {[%emt 0:00:12]} Qfe2 {[%emt 0:00:41]} 55. Qd5+ {[%emt 0:00:39]} Kh4 {[%emt 0:00:12]} 56. Kb2 {[%emt 0:01:03]} Q1f2 {[%emt 0:00:40]} 57. b7 {[%emt 0:00:11]} Qb6+ {[%emt 0:00:21]} 58. Qb3 {[%emt 0:00:22]} Qxb3+ {[%emt 0:00:30]} 59. Kxb3 {[%emt 0:00:04]} Qe8 {[%emt 0:00:41]} 60. Bd4 {[%emt 0:00:29]} Qb8 {[%emt 0:00:38]} 61. Nc4 {[%emt 0:00:09]} Kg3 {[%emt 0:00:25]} 62. Bd5 {[%emt 0:00:14]} Kh2 {[%emt 0:00:34]} 63. Nb6 {[%emt 0:00:47]} Qf8 {[%emt 0:00:19]} 64. Nd7 {[%emt 0:00:54]} Qf5 {[%emt 0:00:02]} 65. b8=Q {[%emt 0:01:34]} Qxd5+ {[%emt 0:00:05]} 66. Kc3 {[%emt 0:00:10]} g3 {[%emt 0:01:20]} 67. Qh8+ {[%emt 0:00:44]} Kg2 {[%emt 0:00:04]} 68. Nb6 {[%emt 0:00:05]} Qf3+ {[%emt 0:00:55]} 69. Kb4 {[%emt 0:00:19]} Qd3 {[%emt 0:00:46]} 70. Qa8+ {[%emt 0:00:13]} Kh2 {[%emt 0:00:26]} 71. Qd5 {[%emt 0:00:30]} Qd2+ {[%emt 0:00:09]} 72. Bc3 {[%emt 0:00:27]} Qf4+ {[%emt 0:00:55]} 73. Qd4 {[%emt 0:00:12]} Qf5 {[%emt 0:00:31]} 74. Qxd6 {[%emt 0:00:19]} a5+ {[%emt 0:00:03]} 75. Kc4 {[%emt 0:00:15]} Qf1+ {[%emt 0:00:14]} 76. Kc5 {[%emt 0:01:00]} Qf5+ {[%emt 0:01:03]} 77. Qe5 {[%emt 0:00:08]} Qf8+ {[%emt 0:00:23]} 78. Kb5 {[%emt 0:00:08]} Kh1 {[%emt 0:00:11]} 79. Qh8+ {[%emt 0:00:12]} Qxh8 {[%emt 0:00:18]} 80. Bxh8 {[%emt 0:00:05]} g2 {[%emt 0:00:04]} 81. Bd4 {[%emt 0:00:04]} 1-0

[Event "9th RTU Open 2019"]
[Site "Riga"]
[Date "2019.08.09"]
[Round "8.5"]
[White "Haria, Ravi"]
[Black "Sulskis, Sarunas"]
[Result "0-1"]
[ECO "A11"]
[WhiteElo "2430"]
[BlackElo "2519"]
[Annotator "ChessBase"]
[PlyCount "122"]
[EventDate "2019.08.05"]
[EventType "swiss"]
[EventCountry "LAT"]
[SourceTitle "playchess.com"]
[Source "ChessBase"]
[SourceQuality "1"]
[TimeControl "5400+30"]

1. Nf3 {[%emt 0:00:00]} d5 {[%emt 0:00:00]} 2. g3 {[%emt 0:00:09]} c6 {[%emt 0:00:40]} 3. Bg2 {[%emt 0:00:23]} Nf6 {[%emt 0:00:13]} 4. c4 {[%emt 0:00:58]} dxc4 {[%emt 0:01:50]} 5. O-O {[%emt 0:00:52]} Nbd7 {[%emt 0:05:16]} 6. Na3 {[%emt 0:00:37]} Nb6 {[%emt 0:01:12]} 7. Ne5 {[%emt 0:01:10]} Be6 {[%emt 0:01:25]} 8. Qc2 {[%emt 0:00:59]} h5 {[%emt 0:02:44]} 9. h4 {[%emt 0:07:10]} Qd4 {[%emt 0:08:48]} 10. Nxc6 {[%emt 0:09:43]} bxc6 {[%emt 0:03:39]} 11. Bxc6+ {[%emt 0:02:50]} Bd7 {[%emt 0:00:32]} 12. Bxa8 {[%emt 0:03:34]} Nxa8 {[%emt 0:00:17]} 13. Qxc4 {[%emt 0:03:05]} Qb6 {[%emt 0:10:03]} 14. d3 {[%emt 0:09:42]} Qb7 {[%emt 0:10:22]} 15. Re1 {[%emt 0:17:14]} e6 {[%emt 0:06:13]} 16. Be3 {[%emt 0:05:18]} Nb6 {[%emt 0:05:03]} 17. Qc2 {[%emt 0:02:20]} Bxa3 {[%emt 0:07:40]} 18. bxa3 {[%emt 0:00:30]} O-O {[%emt 0:00:07]} 19. Rab1 {[%emt 0:02:10]} e5 {[%emt 0:02:57]} 20. f3 {[%emt 0:13:47]} Re8 {[%emt 0:04:58]} 21. Rec1 {[%emt 0:07:15]} Qa6 {[%emt 0:01:22]} 22. Qc5 {[%emt 0:00:53]} Be6 {[%emt 0:06:17]} 23. Qd6 {[%emt 0:04:26]} Qa5 {[%emt 0:03:24]} 24. Qc5 {[%emt 0:00:58]} Qa4 {[%emt 0:02:04]} 25. Qb4 {[%emt 0:01:01]} Qd7 {[%emt 0:01:43]} 26. Qb5 {[%emt 0:00:47]} Qd8 {[%emt 0:02:10]} 27. Bxb6 {[%emt 0:01:42]} axb6 {[%emt 0:00:06]} 28. Qxb6 {[%emt 0:00:12]} Qa8 {[%emt 0:00:34]} 29. Qc5 {[%emt 0:03:17]} Nd7 {[%emt 0:02:20]} 30. Qe3 {[%emt 0:00:45]} Qxa3 {[%emt 0:00:19]} 31. Rc2 {[%emt 0:00:12]} Qd6 {[%emt 0:01:19]} 32. Rbc1 {[%emt 0:00:19]} Nf6 {[%emt 0:00:38]} 33. Qc5 {[%emt 0:00:58]} Qb8 {[%emt 0:01:28]} 34. Qc7 {[%emt 0:00:35]} Qa8 {[%emt 0:01:15]} 35. Qc6 {[%emt 0:00:30]} Qd8 {[%emt 0:00:30]} 36. Qc5 {[%emt 0:00:11]} Qb8 {[%emt 0:03:16]} 37. Kg2 {[%emt 0:00:49]} Kh7 {[%emt 0:00:41]} 38. Kf2 {[%emt 0:01:00]} Rc8 {[%emt 0:01:02]} 39. Qe3 {[%emt 0:00:09]} Rxc2 {[%emt 0:01:11]} 40. Rxc2 {[%emt 0:00:02]} Nd5 {[%emt 0:00:22]} 41. Qc5 {[%emt 0:01:17]} Qb1 {[%emt 0:00:37]} 42. Rc1 {[%emt 0:00:34]} Qxa2 {[%emt 0:00:14]} 43. Qc2 {[%emt 0:00:29]} Qa7+ {[%emt 0:01:09]} 44. Qc5 {[%emt 0:00:28]} Qb8 {[%emt 0:00:15]} 45. d4 {[%emt 0:00:24]} e4 {[%emt 0:01:03]} 46. Qc2 {[%emt 0:00:40]} Nf6 {[%emt 0:01:03]} 47. fxe4 {[%emt 0:00:21]} Ng4+ {[%emt 0:00:23]} 48. Kf3 {[%emt 0:00:05]} Qd8 {[%emt 0:00:22]} 49. e5+ {[%emt 0:00:58]} g6 {[%emt 0:00:06]} 50. Rd1 {[%emt 0:00:27]} Qa8+ {[%emt 0:01:21]} 51. e4 {[%emt 0:00:15]} Qa3+ {[%emt 0:00:17]} 52. Rd3 {[%emt 0:00:42]} Qa1 {[%emt 0:00:49]} 53. Rd1 {[%emt 0:00:05]} Qa6 {[%emt 0:01:02]} 54. d5 {[%emt 0:01:04]} Qa3+ {[%emt 0:00:51]} 55. Ke2 {[%emt 0:00:32]} Qe3+ {[%emt 0:00:30]} 56. Kf1 {[%emt 0:00:04]} Qxg3 {[%emt 0:00:19]} 57. Rd3 {[%emt 0:00:49]} Nh2+ {[%emt 0:01:04]} 58. Ke2 {[%emt 0:00:26]} Bg4+ {[%emt 0:00:47]} 59. Kd2 {[%emt 0:00:04]} Nf3+ {[%emt 0:00:16]} 60. Kc1 {[%emt 0:01:03]} Qf4+ {[%emt 0:00:22]} 61. Kb1 {[%emt 0:00:36]} Ne1 {[%emt 0:00:32]} 0-1

[Event "9th RTU Open 2019"]
[Site "Riga"]
[Date "2019.08.09"]
[Round "8.10"]
[White "Grinev, Valeriy"]
[Black "Dastan, Muhammed Batuhan"]
[Result "0-1"]
[ECO "A88"]
[WhiteElo "2437"]
[BlackElo "2565"]
[Annotator "ChessBase"]
[PlyCount "118"]
[EventDate "2019.08.05"]
[EventType "swiss"]
[EventCountry "LAT"]
[SourceTitle "playchess.com"]
[Source "ChessBase"]
[SourceQuality "1"]
[TimeControl "5400+30"]

1. c4 {[%emt 0:01:14]} f5 {[%emt 0:00:00]} 2. Nc3 {[%emt 0:00:14]} Nf6 {[%emt 0:00:04]} 3. g3 {[%emt 0:00:13]} g6 {[%emt 0:00:16]} 4. Nf3 {[%emt 0:00:11]} Bg7 {[%emt 0:00:13]} 5. Bg2 {[%emt 0:00:07]} O-O {[%emt 0:00:06]} 6. O-O {[%emt 0:00:07]} d6 {[%emt 0:00:04]} 7. d4 {[%emt 0:00:06]} c6 {[%emt 0:00:03]} 8. Rb1 {[%emt 0:00:06]} a5 {[%emt 0:00:29]} 9. Qb3 {[%emt 0:00:14]} Na6 {[%emt 0:01:03]} 10. Rd1 {[%emt 0:03:34]} h6 {[%emt 0:00:21]} 11. Na4 {[%emt 0:10:28]} Rb8 {[%emt 0:06:19]} 12. Qb6 {[%emt 0:01:42]} Be6 {[%emt 0:05:38]} 13. b3 {[%emt 0:02:16]} Nd7 {[%emt 0:02:18]} 14. Qxd8 {[%emt 0:00:09]} Rfxd8 {[%emt 0:00:08]} 15. d5 {[%emt 0:09:23]} cxd5 {[%emt 0:08:32]} 16. cxd5 {[%emt 0:00:09]} Bf7 {[%emt 0:00:02]} 17. Nd4 {[%emt 0:00:32]} Nc7 {[%emt 0:07:13]} 18. Bb2 {[%emt 0:03:13]} Bxd4 {[%emt 0:08:33]} 19. Rxd4 {[%emt 0:14:27]} b5 {[%emt 0:00:08]} 20. Nc3 {[%emt 0:00:06]} Nf6 {[%emt 0:02:33]} 21. Rbd1 {[%emt 0:02:40]} b4 {[%emt 0:06:18]} 22. Na4 {[%emt 0:00:44]} Kh7 {[%emt 0:02:47]} 23. R4d3 {[%emt 0:12:18]} Kg7 {[%emt 0:06:24]} 24. Bd4 {[%emt 0:07:24]} Rb5 {[%emt 0:01:42]} 25. Nb6 {[%emt 0:04:31]} g5 {[%emt 0:01:34]} 26. e4 {[%emt 0:04:04]} fxe4 {[%emt 0:02:06]} 27. Bxe4 {[%emt 0:00:15]} Kf8 {[%emt 0:02:09]} 28. Bxf6 {[%emt 0:00:51]} exf6 {[%emt 0:00:59]} 29. Nc4 {[%emt 0:00:06]} f5 {[%emt 0:01:17]} 30. Bxf5 {[%emt 0:03:48]} Nxd5 {[%emt 0:00:44]} 31. R1d2 {[%emt 0:01:14]} Nc3 {[%emt 0:03:59]} 32. Ne3 {[%emt 0:04:47]} Rc5 {[%emt 0:05:01]} 33. Rd4 {[%emt 0:01:19]} Nb5 {[%emt 0:01:07]} 34. R4d3 {[%emt 0:01:42]} d5 {[%emt 0:03:02]} 35. Nc2 {[%emt 0:02:26]} d4 {[%emt 0:01:11]} 36. g4 {[%emt 0:02:20]} Rc3 {[%emt 0:01:30]} 37. Kg2 {[%emt 0:01:16]} Rxd3 {[%emt 0:00:26]} 38. Rxd3 {[%emt 0:01:06]} Kg7 {[%emt 0:01:35]} 39. f4 {[%emt 0:02:01]} Bd5+ {[%emt 0:04:58]} 40. Kg3 {[%emt 0:01:12]} Bb7 {[%emt 0:00:07]} 41. fxg5 {[%emt 0:00:06]} hxg5 {[%emt 0:00:05]} 42. h4 {[%emt 0:00:30]} gxh4+ {[%emt 0:00:19]} 43. Kxh4 {[%emt 0:00:05]} Kf6 {[%emt 0:00:27]} 44. Rd2 {[%emt 0:01:24]} Ke5 {[%emt 0:06:30]} 45. Re2+ {[%emt 0:00:08]} Kf4 {[%emt 0:00:04]} 46. Rf2+ {[%emt 0:00:51]} Bf3 {[%emt 0:00:04]} 47. Kh5 {[%emt 0:00:19]} Kg3 {[%emt 0:03:52]} 48. Rd2 {[%emt 0:00:04]} Bxg4+ {[%emt 0:00:48]} 49. Bxg4 {[%emt 0:00:24]} Rd5+ {[%emt 0:00:04]} 50. Kg6 {[%emt 0:04:03]} Kxg4 {[%emt 0:00:04]} 51. Rf2 {[%emt 0:01:41]} Nd6 {[%emt 0:04:29]} 52. Rd2 {[%emt 0:00:38]} Nf5 {[%emt 0:00:26]} 53. a3 {[%emt 0:00:09]} d3 {[%emt 0:02:25]} 54. Ne1 {[%emt 0:00:04]} Nh4+ {[%emt 0:01:42]} 55. Kf6 {[%emt 0:01:41]} Nf3 {[%emt 0:00:08]} 56. Ng2 {[%emt 0:00:44]} Rf5+ {[%emt 0:00:53]} 57. Ke6 {[%emt 0:00:07]} Nxd2 {[%emt 0:00:06]} 58. Ne3+ {[%emt 0:00:03]} Kf4 {[%emt 0:00:08]} 59. Nxf5 {[%emt 0:00:27]} bxa3 {[%emt 0:00:05] Ke5+ Kxe5} 0-1

[Event "9th RTU Open 2019"]
[Site "Riga"]
[Date "2019.08.09"]
[Round "8.11"]
[White "Wagner, Dennis"]
[Black "Korchmar, Vasiliy"]
[Result "1/2-1/2"]
[ECO "D38"]
[WhiteElo "2579"]
[BlackElo "2424"]
[Annotator "ChessBase"]
[PlyCount "124"]
[EventDate "2019.08.05"]
[EventType "swiss"]
[EventCountry "LAT"]
[SourceTitle "playchess.com"]
[Source "ChessBase"]
[SourceQuality "1"]
[TimeControl "5400+30"]

1. d4 {[%emt 0:02:10]} Nf6 {[%emt 0:00:00]} 2. c4 {[%emt 0:00:18]} e6 {[%emt 0:00:00]} 3. Nf3 {[%emt 0:00:09]} d5 {[%emt 0:00:03]} 4. Nc3 {[%emt 0:00:08]} Bb4 {[%emt 0:00:10]} 5. cxd5 {[%emt 0:00:40]} exd5 {[%emt 0:00:07]} 6. Bg5 {[%emt 0:00:05]} h6 {[%emt 0:00:28]} 7. Bh4 {[%emt 0:00:09]} O-O {[%emt 0:00:10]} 8. e3 {[%emt 0:00:29]} Bf5 {[%emt 0:00:07]} 9. Be2 {[%emt 0:00:22]} Nbd7 {[%emt 0:04:31]} 10. Qb3 {[%emt 0:00:27]} Bxc3+ {[%emt 0:00:30]} 11. Qxc3 {[%emt 0:00:05]} c5 {[%emt 0:03:08]} 12. dxc5 {[%emt 0:01:33]} g5 {[%emt 0:00:24]} 13. Bg3 {[%emt 0:04:17]} Ne4 {[%emt 0:00:14]} 14. Qa3 {[%emt 0:16:35]} Ndxc5 {[%emt 0:03:44]} 15. O-O {[%emt 0:04:02]} Nxg3 {[%emt 0:05:20]} 16. hxg3 {[%emt 0:00:14]} Qb6 {[%emt 0:00:53]} 17. Rfd1 {[%emt 0:09:20]} Rfd8 {[%emt 0:03:56]} 18. Nd4 {[%emt 0:01:08]} Be4 {[%emt 0:05:49]} 19. Bg4 {[%emt 0:13:59]} Nd7 {[%emt 0:27:34]} 20. Bxd7 {[%emt 0:06:25]} Rxd7 {[%emt 0:00:06]} 21. g4 {[%emt 0:00:06]} Rc8 {[%emt 0:01:24]} 22. Rac1 {[%emt 0:00:39]} Rdc7 {[%emt 0:04:36]} 23. Rxc7 {[%emt 0:09:45]} Rxc7 {[%emt 0:00:05]} 24. b3 {[%emt 0:00:32]} Qc5 {[%emt 0:10:20]} 25. Qb2 {[%emt 0:18:18]} a5 {[%emt 0:04:33]} 26. f3 {[%emt 0:01:15]} Bg6 {[%emt 0:00:13]} 27. Kf2 {[%emt 0:00:10]} b5 {[%emt 0:01:29]} 28. a3 {[%emt 0:06:12]} b4 {[%emt 0:00:22]} 29. axb4 {[%emt 0:00:05]} Qxb4 {[%emt 0:06:00]} 30. Qd2 {[%emt 0:02:10]} Rc3 {[%emt 0:01:34]} 31. Kg3 {[%emt 0:01:48]} Qc5 {[%emt 0:02:22]} 32. Ra1 {[%emt 0:00:49]} Kh7 {[%emt 0:02:29]} 33. Kf2 {[%emt 0:00:05]} Qb4 {[%emt 0:03:04]} 34. Ra4 {[%emt 0:01:01]} Qc5 {[%emt 0:00:01]} 35. Ra2 {[%emt 0:00:44]} Qb4 {[%emt 0:00:12]} 36. Ra4 {[%emt 0:00:43]} Qc5 {[%emt 0:00:12]} 37. Ra1 {[%emt 0:00:52]} Qb4 {[%emt 0:00:02]} 38. Rd1 {[%emt 0:00:33]} Qc5 {[%emt 0:00:30]} 39. Qe1 {[%emt 0:00:33]} Qb4 {[%emt 0:04:11]} 40. Ra1 {[%emt 0:00:14]} Qc5 {[%emt 0:00:18]} 41. Ra2 {[%emt 0:00:25]} Qc7 {[%emt 0:00:46]} 42. Qd2 {[%emt 0:00:49]} Qc5 {[%emt 0:01:00]} 43. Qe1 {[%emt 0:00:19]} Qc7 {[%emt 0:00:01]} 44. Ra1 {[%emt 0:00:32]} Qc5 {[%emt 0:00:04]} 45. Rd1 {[%emt 0:00:03]} Qb4 {[%emt 0:00:05]} 46. Rc1 {[%emt 0:00:27]} Rxc1 {[%emt 0:01:20]} 47. Qxc1 {[%emt 0:00:02]} a4 {[%emt 0:00:13]} 48. bxa4 {[%emt 0:00:03]} Qxa4 {[%emt 0:00:02]} 49. Qb2 {[%emt 0:00:14]} Qd1 {[%emt 0:00:37]} 50. Ne2 {[%emt 0:02:00]} Bd3 {[%emt 0:00:50]} 51. Ng3 {[%emt 0:00:13]} Bg6 {[%emt 0:01:24]} 52. Qd4 {[%emt 0:01:06]} Qxd4 {[%emt 0:02:42]} 53. exd4 {[%emt 0:00:01]} Kg7 {[%emt 0:00:00]} 54. Ke3 {[%emt 0:00:28]} Kf6 {[%emt 0:00:07]} 55. Kd2 {[%emt 0:00:23]} Ke6 {[%emt 0:00:09]} 56. Kc3 {[%emt 0:00:30]} Kd6 {[%emt 0:03:27]} 57. Kb4 {[%emt 0:00:46]} Kc6 {[%emt 0:00:44]} 58. Ka5 {[%emt 0:00:21]} Bd3 {[%emt 0:00:28]} 59. Nf5 {[%emt 0:00:55]} h5 {[%emt 0:00:59]} 60. Ne7+ {[%emt 0:00:38]} Kd6 {[%emt 0:00:26]} 61. Nf5+ {[%emt 0:00:24]} Kc6 {[%emt 0:00:11]} 62. Ne7+ {[%emt 0:00:31]} Kd6 {[%emt 0:00:02]} 1/2-1/2

[Event "9th RTU Open 2019"]
[Site "Riga"]
[Date "2019.08.09"]
[Round "8.12"]
[White "Gokerkan, Cem Kaan"]
[Black "Lalith Babu M R"]
[Result "0-1"]
[ECO "C54"]
[WhiteElo "2415"]
[BlackElo "2580"]
[Annotator "ChessBase"]
[PlyCount "78"]
[EventDate "2019.08.05"]
[EventType "swiss"]
[EventCountry "LAT"]
[SourceTitle "playchess.com"]
[Source "ChessBase"]
[SourceQuality "1"]
[TimeControl "5400+30"]

1. e4 {[%emt 0:08:00]} e5 {[%emt 0:00:00]} 2. Nf3 {[%emt 0:00:06]} Nc6 {[%emt 0:00:00]} 3. Bc4 {[%emt 0:00:05]} Bc5 {[%emt 0:00:00]} 4. c3 {[%emt 0:00:11]} Nf6 {[%emt 0:00:00]} 5. d3 {[%emt 0:00:05]} a6 {[%emt 0:00:00]} 6. O-O {[%emt 0:01:29]} d6 {[%emt 0:00:09]} 7. a4 {[%emt 0:01:52]} Ba7 {[%emt 0:00:05]} 8. Re1 {[%emt 0:07:18]} Ng4 {[%emt 0:01:46]} 9. Re2 {[%emt 0:10:59]} Qf6 {[%emt 0:01:14]} 10. Bg5 {[%emt 0:18:55]} Qg6 {[%emt 0:00:33]} 11. Nbd2 {[%emt 0:01:27]} h6 {[%emt 0:03:49]} 12. Bh4 {[%emt 0:00:16]} Nf6 {[%emt 0:01:15]} 13. Re1 {[%emt 0:07:36]} Nh5 {[%emt 0:02:04]} 14. Nf1 {[%emt 0:01:21]} O-O {[%emt 0:02:54]} 15. Ne3 {[%emt 0:03:18]} Be6 {[%emt 0:03:34]} 16. Nd5 {[%emt 0:10:27]} Bh3 {[%emt 0:06:03]} 17. Bg5 {[%emt 0:08:31]} hxg5 {[%emt 0:09:47]} 18. gxh3 {[%emt 0:00:13]} Nf4 {[%emt 0:00:12]} 19. Nxf4 {[%emt 0:00:49]} gxf4+ {[%emt 0:00:05]} 20. Kf1 {[%emt 0:00:06]} Qh6 {[%emt 0:04:32]} 21. Ng1 {[%emt 0:03:04]} Ne7 {[%emt 0:00:30]} 22. Qg4 {[%emt 0:00:43]} g6 {[%emt 0:19:34]} 23. Nf3 {[%emt 0:00:37]} Kh8 {[%emt 0:00:03]} 24. Qd7 {[%emt 0:01:18]} Ng8 {[%emt 0:02:25]} 25. Qxc7 {[%emt 0:02:07]} Qxh3+ {[%emt 0:01:02]} 26. Ke2 {[%emt 0:00:00]} Qg2 {[%emt 0:00:37]} 27. Rf1 {[%emt 0:00:43]} Nf6 {[%emt 0:02:06]} 28. Qxd6 {[%emt 0:03:42]} Ng4 {[%emt 0:00:24]} 29. d4 {[%emt 0:02:41]} Rad8 {[%emt 0:01:12]} 30. Qe7 {[%emt 0:03:58]} exd4 {[%emt 0:00:28]} 31. Qh4+ {[%emt 0:01:18]} Kg7 {[%emt 0:00:08]} 32. Rg1 {[%emt 0:00:34]} d3+ {[%emt 0:01:59]} 33. Bxd3 {[%emt 0:00:17]} Qxf2+ {[%emt 0:00:11]} 34. Qxf2 {[%emt 0:00:02]} Nxf2 {[%emt 0:00:06]} 35. Bc2 {[%emt 0:00:30]} Nxe4 {[%emt 0:00:44]} 36. Rgd1 {[%emt 0:00:52]} Rde8 {[%emt 0:00:06]} 37. Kf1 {[%emt 0:00:08]} Nf6 {[%emt 0:00:28]} 38. Re1 {[%emt 0:00:44]} Ng4 {[%emt 0:00:18]} 39. Be4 {[%emt 0:01:39]} Re7 {[%emt 0:00:57]} 0-1

[Event "9th RTU Open 2019"]
[Site "Riga"]
[Date "2019.08.09"]
[Round "8.13"]
[White "Jamieson, Peter M"]
[Black "Tania, Sachdev"]
[Result "1-0"]
[ECO "C91"]
[WhiteElo "2213"]
[BlackElo "2401"]
[Annotator "NA"]
[PlyCount "71"]
[EventDate "2019.08.05"]
[EventType "swiss"]
[EventCountry "LAT"]
[SourceTitle "playchess.com"]
[Source "ChessBase"]
[SourceQuality "1"]
[TimeControl "5400+30"]

1. e4 {[%emt 0:04:23]} e5 {[%emt 0:00:00]} 2. Nf3 {[%emt 0:00:16]} Nc6 {[%emt 0:00:00]} 3. Bb5 {[%emt 0:00:06]} a6 {[%emt 0:00:00]} 4. Ba4 {[%emt 0:00:05]} Nf6 {[%emt 0:00:00]} 5. O-O {[%emt 0:00:23]} b5 {[%emt 0:00:06]} 6. Bb3 {[%emt 0:00:09]} Bb7 {[%emt 0:00:03]} 7. Re1 {[%emt 0:00:49]} Be7 {[%emt 0:01:02]} 8. d4 {[%emt 0:00:18]} d6 {[%emt 0:03:43]} 9. c3 {[%emt 0:03:59]} O-O {[%emt 0:00:35]} 10. Nbd2 {[%emt 0:00:10]} Nd7 {[%emt 0:02:07]} 11. Nf1 {[%emt 0:03:58]} Na5 {[%emt 0:09:40]} 12. Bc2 {[%emt 0:00:13]} c5 {[%emt 0:02:51]} 13. d5 {[%emt 0:03:25]} Nb6 {[%emt 0:03:20]} 14. Ng3 {[%emt 0:12:25]} Bc8 {[%emt 0:00:04]} 15. Nf5 {[%emt 0:01:58]} Bxf5 {[%emt 0:04:06]} 16. exf5 {[%emt 0:00:05]} Qd7 {[%emt 0:02:10]} 17. h4 {[%emt 0:06:50]} Nb7 {[%emt 0:28:10]} 18. Ng5 {[%emt 0:02:46]} Bf6 {[%emt 0:10:23]} 19. Qh5 {[%emt 0:01:21]} Bxg5 {[%emt 0:08:39]} 20. f6 {[%emt 0:02:32]} g6 {[%emt 0:00:29]} 21. Qxg5 {[%emt 0:00:07]} Kh8 {[%emt 0:02:21]} 22. h5 {[%emt 0:01:59]} Nxd5 {[%emt 0:01:51]} 23. Be4 {[%emt 0:03:36]} Nc7 {[%emt 0:02:44]} 24. Qh6 {[%emt 0:02:52]} Ne6 {[%emt 0:00:08]} 25. Re3 {[%emt 0:02:28]} d5 {[%emt 0:06:08]} 26. Rd3 {[%emt 0:00:22]} Rad8 {[%emt 0:07:21]} 27. Rxd5 {[%emt 0:04:24]} Qxd5 {[%emt 0:00:13]} 28. Bxd5 {[%emt 0:00:13]} Rxd5 {[%emt 0:00:01]} 29. hxg6 {[%emt 0:02:19]} fxg6 {[%emt 0:00:06]} 30. Be3 {[%emt 0:01:22]} Rxf6 {[%emt 0:01:54]} 31. a4 {[%emt 0:00:32]} Nd6 {[%emt 0:02:01]} 32. Qh4 {[%emt 0:00:49]} Rf7 {[%emt 0:02:33]} 33. axb5 {[%emt 0:00:10]} axb5 {[%emt 0:00:02]} 34. Ra8+ {[%emt 0:00:21]} Nf8 {[%emt 0:00:35]} 35. Bh6 {[%emt 0:00:25]} Nf5 {[%emt 0:00:40]} 36. Bxf8 {[%emt 0:00:17]} 1-0